bitfinex/quotes_SOLUSD_20260203
["timestamp","ask_amount","ask_price","bid_price","bid_amount"]
[1770149459819,4.5,98.722,98.67,10.26654152]
[1770149460007,4.5,98.722,98.66,10.26654152]
[1770149460210,4.5,98.722,98.67,10.26654152]
[1770149460406,4.5,98.722,98.66,10.26654152]
[1770149460607,4.5,98.722,98.67,10.26654152]
[1770149462524,4.5,98.722,98.66,10.26654152]
[1770149462931,4.5,98.722,98.67,10.26654152]
[1770149465319,6.45916095,98.727,98.68,10.26654152]
[1770149465624,10.95916095,98.727,98.69,10.26654152]
[1770149466015,10.95916095,98.727,98.64,10.26654152]
[1770149466016,10.95916095,98.727,98.7,10.26654152]
[1770149466317,6.45916095,98.727,98.7,10.26654152]
[1770149466520,6.45916095,98.727,98.72,10.26654152]
[1770149467114,6.45916095,98.727,98.7,10.26654152]
[1770149468824,4.5,98.726,98.6,170.04101848]
[1770149469005,4.5,98.718,98.62,10.26654152]
[1770149469202,4.5,98.716,98.63,10.26654152]
[1770149469699,11.12288209,98.717,98.63,10.26654152]
[1770149469700,4.5,98.714,98.63,10.26654152]
[1770149470224,4.5,98.712,98.63,10.26654152]
[1770149470728,4.5,98.712,98.64,10.26654152]
[1770149471225,4.5,98.712,98.65,10.26654152]
[1770149471525,4.5,98.712,98.67,10.26654152]
[1770149472509,4.5,98.712,98.66,10.26654152]
[1770149473730,4.5,98.712,98.65,10.26654152]
[1770149474028,4.5,98.712,98.613,28.18]
[1770149474029,4.5,98.712,98.66,10.26654152]
[1770149474210,4.5,98.712,98.65,10.26654152]
[1770149476434,4.5,98.712,98.66,10.26654152]
[1770149476628,4.5,98.712,98.67,10.26654152]
[1770149477136,4.5,98.712,98.65,10.26654152]
[1770149477308,4.5,98.712,98.66,10.26654152]
[1770149478555,4.5,98.712,98.574,50.79571374]
[1770149478832,4.5,98.708,98.63,10.26654152]
[1770149479508,4.5,98.708,98.64,10.26654152]
[1770149480127,4.5,98.708,98.66,10.26654152]
[1770149480308,4.5,98.708,98.64,10.26654152]
[1770149480556,4.5,98.708,98.64,10.27432789]
[1770149480820,4.5,98.708,98.62,10.27432789]
[1770149481530,4.5,98.708,98.63,10.27432789]
[1770149481834,4.5,98.708,98.64,10.27432789]
[1770149482232,4.5,98.708,98.63,10.27432789]
[1770149483514,4.5,98.704,98.64,10.27432789]
[1770149483714,4.5,98.704,98.63,10.27432789]
[1770149485431,4.5,98.704,98.62,10.27432789]
[1770149485737,4.5,98.704,98.63,10.27432789]
[1770149489435,4.5,98.704,98.64,10.27432789]
[1770149489638,4.5,98.704,98.66,10.27432789]
[1770149491727,4.5,98.725,98.67,10.27432789]
[1770149492620,4.5,98.725,98.66,10.27432789]
[1770149493033,6.47376681,98.726,98.614,28.18]
[1770149493034,6.47376681,98.726,98.7,10.27432789]
[1770149493237,6.47376681,98.726,98.641,6.37463911]
[1770149493441,4.5,98.763,98.73,10.27432789]
[1770149493627,4.5,98.763,98.71,10.27432789]
[1770149493828,4.5,98.761,98.69,10.27432789]
[1770149494141,4.5,98.761,98.643,25.34371448]
[1770149494346,4.5,98.761,98.7,10.27432789]
[1770149494840,4.5,98.761,98.69,10.27432789]
[1770149495240,4.5,98.755,98.641,10.13768646]
[1770149495556,4.5,98.751,98.68,10.27432789]
[1770149495846,4.5,98.751,98.69,10.27432789]
[1770149497522,4.5,98.751,98.68,10.27432789]
[1770149498530,4.5,98.751,98.7,10.27432789]
[1770149500228,4.5,98.751,98.68,10.27432789]
[1770149500574,4.5,98.751,98.69,10.27432789]
[1770149501232,4.5,98.751,98.7,10.27432789]
[1770149501953,4.5,98.751,98.69,10.27432789]
[1770149502160,4.5,98.751,98.68,10.27432789]
[1770149502947,4.5,98.751,98.69,10.27432789]
[1770149505459,4.5,98.751,98.71,10.27432789]
[1770149505949,4.5,98.778,98.72,10.27432789]
[1770149506133,4.5,98.778,98.73,10.27432789]
[1770149506533,4.5,98.778,98.74,10.27432789]
[1770149507942,4.5,98.778,98.677,1.01340737]
[1770149508142,4.5,98.772,98.68,10.27432789]
[1770149508350,4.5,98.772,98.69,10.27432789]
[1770149509142,4.5,98.772,98.7,10.27432789]
[1770149509947,4.5,98.772,98.69,10.27432789]
[1770149510144,4.5,98.768,98.68,10.27432789]
[1770149510348,11.12288209,98.777,98.68,10.27432789]
[1770149510349,4.5,98.762,98.68,10.27432789]
[1770149511467,4.5,98.752,98.67,10.27432789]
[1770149512269,4.5,98.742,98.66,10.27432789]
[1770149512744,5.36086188,98.739,98.65,10.27432789]
[1770149512949,4.5,98.722,98.63,10.27432789]
[1770149513343,4.5,98.722,98.65,10.27432789]
[1770149513748,4.5,98.722,98.67,10.27432789]
[1770149518274,4.5,98.722,98.68,10.27432789]
[1770149518487,4.5,98.753,98.69,10.27432789]
[1770149519175,4.5,98.753,98.68,10.27432789]
[1770149519371,4.5,98.753,98.71,10.27432789]
[1770149519773,4.5,98.775,98.72,10.27432789]
[1770149520270,4.5,98.775,98.71,10.27432789]
[1770149520773,4.5,98.775,98.73,10.27432789]
[1770149521361,4.5,98.775,98.72,10.27432789]
[1770149521873,4.5,98.775,98.73,10.27432789]
[1770149522275,4.5,98.775,98.694,10.132282]
[1770149522276,0.2,98.79,98.75,10.27432789]
[1770149522476,0.2,98.79,98.77,10.27432789]
[1770149522659,0.2,98.79,98.78,10.27432789]
[1770149523164,4.7,98.82,98.78,10.27432789]
[1770149523363,4.7,98.82,98.79,10.27432789]
[1770149523567,0.2,98.82,98.79,10.27432789]
[1770149523759,0.2,98.82,98.81,10.27432789]
[1770149524777,0.2,98.82,98.735,5.36086188]
[1770149524971,0.2,98.82,98.8,10.27432789]
[1770149525154,0.2,98.82,98.79,10.27432789]
[1770149525355,0.2,98.82,98.8,10.27432789]
[1770149526484,0.2,98.82,98.737,1.01279155]
[1770149526664,0.2,98.82,98.79,10.27432789]
[1770149526867,0.2,98.82,98.8,10.27432789]
[1770149527078,0.2,98.82,98.81,10.27432789]
[1770149527667,0.2,98.84,98.82,10.27432789]
[1770149527974,0.2,98.84,98.81,10.27432789]
[1770149528162,0.2,98.84,98.8,10.27432789]
[1770149528361,0.2,98.84,98.81,10.27432789]
[1770149532972,0.2,98.84,98.83,10.27432789]
[1770149533174,0.2,98.85,98.84,10.27432789]
[1770149533474,0.2,98.85,98.773,1.01242242]
[1770149533475,0.2,98.85,98.83,10.27432789]
[1770149533856,0.2,98.85,98.765,50.43420432]
[1770149533857,0.2,98.85,98.82,10.27432789]
[1770149534473,0.2,98.85,98.83,10.27432789]
[1770149535257,0.2,98.85,98.84,10.27432789]
[1770149535479,6.54079594,98.862,98.84,10.27432789]
[1770149535781,6.54079594,98.862,98.85,10.27432789]
[1770149536279,0.2,98.88,98.85,10.27432789]
[1770149536680,0.2,98.88,98.817,10.11966615]
[1770149536856,4.5,98.875,98.85,10.27432789]
[1770149537183,0.2,98.88,98.86,10.27432789]
[1770149537384,0.2,98.89,98.87,10.27432789]
[1770149537595,0.2,98.89,98.88,10.27432789]
[1770149537770,0.2,98.89,98.87,10.27432789]
[1770149539183,0.2,98.93,98.813,28.14]
[1770149539184,4.5,98.917,98.88,10.27432789]
[1770149539387,4.5,98.899,98.86,10.27432789]
[1770149539679,4.5,98.899,98.87,10.27432789]
[1770149539881,4.5,98.908,98.88,10.27432789]
[1770149540480,4.5,98.919,98.89,10.27432789]
[1770149541060,0.2,98.93,98.89,10.27432789]
[1770149541061,4.7,98.93,98.89,10.27432789]
[1770149541362,4.7,98.93,98.9,10.27432789]
[1770149541769,4.7,98.93,98.88,10.27432789]
[1770149542366,4.7,98.93,98.88,10.22367645]
[1770149543872,4.7,98.93,98.824,1.01189994]
[1770149544074,5.36086188,98.925,98.8,10.22367645]
[1770149544368,0.2,98.93,98.82,10.22367645]
[1770149544369,5.36086188,98.909,98.82,10.22367645]
[1770149544577,4.5,98.902,98.83,10.22367645]
[1770149544988,4.5,98.902,98.82,10.22367645]
[1770149545294,4.5,98.902,98.83,10.22367645]
[1770149546166,4.5,98.902,98.82,10.22367645]
[1770149546364,4.5,98.902,98.87,10.22367645]
[1770149546884,4.5,98.929,98.89,10.22367645]
[1770149547077,4.5,98.929,98.9,10.22367645]
[1770149547269,4.5,98.929,98.88,10.22367645]
[1770149548592,4.5,98.929,98.86,10.22367645]
[1770149548770,4.5,98.929,98.87,10.22367645]
[1770149549570,4.5,98.929,98.822,10.11911618]
[1770149549871,4.5,98.929,98.86,10.22367645]
[1770149550266,4.5,98.929,98.831,10.11824988]
[1770149550472,4.5,98.929,98.85,10.22367645]
[1770149550691,4.5,98.923,98.83,10.22367645]
[1770149551366,4.5,98.923,98.84,10.22367645]
[1770149552267,4.5,98.923,98.85,10.22367645]
[1770149552480,4.5,98.923,98.84,10.22367645]
[1770149553278,4.5,98.923,98.83,10.22367645]
[1770149553578,4.5,98.923,98.84,10.22367645]
[1770149554168,4.5,98.913,98.82,10.22367645]
[1770149554870,4.5,98.903,98.81,10.22367645]
[1770149555492,4.5,98.903,98.8,10.22367645]
[1770149555789,5.36086188,98.89,98.79,10.42367645]
[1770149555993,5.36086188,98.878,98.79,0.2]
[1770149556206,4.5,98.873,98.79,0.2]
[1770149557081,4.5,98.873,98.79,10.42367645]
[1770149557597,4.5,98.873,98.8,10.22367645]
[1770149557782,4.5,98.873,98.79,10.42367645]
[1770149559676,4.5,98.873,98.79,0.2]
[1770149559905,4.5,98.863,98.79,0.2]
[1770149560302,4.5,98.861,98.79,0.2]
[1770149561575,5.36086188,98.856,98.79,0.2]
[1770149561804,4.5,98.853,98.79,0.2]
[1770149562896,5.36086188,98.838,98.739,0.2]
[1770149563072,4.4,98.833,98.739,0.2]
[1770149563276,5.36086188,98.825,98.739,0.2]
[1770149563476,4.4,98.822,98.739,0.2]
[1770149564299,4.4,98.82,98.739,0.2]
[1770149564689,4.4,98.818,98.739,0.2]
[1770149564883,10.49065966,98.819,98.739,0.2]
[1770149564884,4.4,98.812,98.739,0.2]
[1770149565084,4.4,98.802,98.726,0.2]
[1770149565396,4.4,98.802,98.715,0.2]
[1770149565601,4.4,98.802,98.721,0.2]
[1770149567099,4.4,98.792,98.721,0.2]
[1770149567884,4.4,98.782,98.702,0.2]
[1770149572701,4.4,98.782,98.711,0.2]
[1770149575632,4.49200597,98.772,98.694,41.5872745]
[1770149575810,5.36086188,98.765,98.694,41.5872745]
[1770149576000,4.49200597,98.752,98.694,41.5872745]
[1770149576395,5.36086188,98.747,98.694,41.5872745]
[1770149576609,4.49200597,98.742,98.694,41.5872745]
[1770149577515,4.49200597,98.742,98.676,0.2]
[1770149577816,4.49200597,98.732,98.651,0.2]
[1770149578312,10.49065966,98.744,98.651,0.2]
[1770149578313,4.49200597,98.722,98.651,0.2]
[1770149578708,4.49200597,98.722,98.64,0.2]
[1770149578908,10.49065966,98.744,98.64,0.2]
[1770149578909,4.49200597,98.716,98.64,0.2]
[1770149579109,4.49200597,98.712,98.64,0.2]
[1770149581526,4.49200597,98.712,98.651,0.2]
[1770149581821,192.72605067,99.384,98.671,0.2]
[1770149581822,10.49065966,98.75,98.671,0.2]
[1770149582025,4.49200597,98.757,98.71,10.22367645]
[1770149583300,4.49200597,98.757,98.691,0.2]
[1770149584922,4.49200597,98.757,98.701,0.2]
[1770149585422,4.49200597,98.757,98.71,10.22367645]
[1770149585611,4.49200597,98.757,98.701,0.2]
[1770149587024,4.49200597,98.757,98.711,0.2]
[1770149587206,4.49200597,98.757,98.72,10.22367645]
[1770149587411,4.49200597,98.757,98.711,0.2]
[1770149589706,4.49200597,98.757,98.688,0.2]
[1770149590112,4.49200597,98.757,98.68,0.2]
[1770149590727,4.49200597,98.757,98.681,0.2]
[1770149591528,4.49200597,98.741,98.661,0.2]
[1770149593728,4.49200597,98.741,98.681,0.2]
[1770149594332,4.49200597,98.741,98.691,0.2]
[1770149597643,4.49200597,98.741,98.701,0.2]
[1770149599110,4.49200597,98.741,98.681,0.2]
[1770149600137,4.49200597,98.741,98.671,0.2]
[1770149603542,4.49200597,98.741,98.662,0.2]
[1770149603727,112.45,98.811,98.652,0.2]
[1770149603728,5.36086188,98.722,98.652,0.2]
[1770149604044,4.4,98.721,98.652,0.2]
[1770149605749,4.4,98.721,98.661,0.2]
[1770149606148,4.4,98.721,98.643,41.5832745]
[1770149606149,4.4,98.721,98.681,0.2]
[1770149606647,4.4,98.721,98.643,41.5832745]
[1770149606954,4.4,98.72,98.644,0.2]
[1770149607155,4.4,98.712,98.644,0.2]
[1770149607630,4.4,98.712,98.643,41.5832745]
[1770149607827,4.4,98.708,98.643,41.5832745]
[1770149608054,4.4,98.702,98.643,41.5832745]
[1770149610435,4.4,98.702,98.643,41.7832745]
[1770149612154,3.9,98.702,98.643,41.7832745]
[1770149612562,3.9,98.702,98.644,0.7]
[1770149613237,3.9,98.702,98.65,10.27335603]
[1770149613437,3.9,98.702,98.65,0.7]
[1770149618549,3.9,98.702,98.65,10.97335603]
[1770149618756,3.9,98.702,98.651,0.7]
[1770149620372,3.9,98.702,98.66,10.27335603]
[1770149620561,3.9,98.702,98.661,0.7]
[1770149621674,3.9,98.702,98.644,0.7]
[1770149623760,3.9,98.702,98.651,0.7]
[1770149627671,3.9,98.702,98.643,41.5832745]
[1770149628558,4.33193213,98.701,98.643,41.5832745]
[1770149628780,4.33193213,98.691,98.643,41.5832745]
[1770149629360,4.2886128,98.681,98.643,28.61520663]
[1770149629582,4.2886128,98.681,98.64,0.2]
[1770149630891,4.2886128,98.681,98.641,4.15042337]
[1770149633566,4.2886128,98.681,98.64,0.2]
[1770149634286,4.24572667,98.671,98.613,4.38997047]
[1770149634585,4.24572667,98.67,98.613,4.38997047]
[1770149635083,4.24572667,98.662,98.613,4.38997047]
[1770149635792,4.24572667,98.658,98.6,170.04101848]
[1770149635982,4.24572667,98.642,98.6,170.04101848]
[1770149636491,5.36086188,98.641,98.6,125.06422594]
[1770149636697,26.97440363,98.641,98.6,125.06422594]
[1770149637288,26.97440363,98.641,98.601,4.49999999]
[1770149637289,21.61354175,98.641,98.601,4.49999999]
[1770149637474,10.49065966,98.641,98.601,4.49999999]
[1770149640395,5.36086188,98.64,98.6,125.06422594]
[1770149640764,5.36086188,98.638,98.6,125.06422594]
[1770149641364,5.36086188,98.64,98.6,125.06422594]
[1770149641681,15.85152154,98.64,98.6,125.06422594]
[1770149641882,10.49065966,98.64,98.601,4.49999999]
[1770149642069,5.36086188,98.665,98.601,4.49999999]
[1770149642281,10.49065966,98.666,98.621,4.49999999]
[1770149642490,11.12288209,98.703,98.631,4.49999999]
[1770149642783,15.85152154,98.702,98.631,4.49999999]
[1770149643222,5.36086188,98.7,98.621,4.49999999]
[1770149643365,5.36086188,98.698,98.621,4.49999999]
[1770149643566,5.36086188,98.696,98.621,4.49999999]
[1770149643781,5.36086188,98.694,98.621,4.49999999]
[1770149644080,5.36086188,98.692,98.621,4.49999999]
[1770149644284,5.36086188,98.69,98.621,4.49999999]
[1770149644588,5.36086188,98.688,98.621,4.49999999]
[1770149644788,5.36086188,98.686,98.621,4.49999999]
[1770149644983,16.48374397,98.686,98.621,4.49999999]
[1770149645380,11.12288209,98.686,98.631,4.49999999]
[1770149645584,10.49065966,98.692,98.631,4.49999999]
[1770149645781,10.49065966,98.692,98.651,4.49999999]
[1770149645983,11.12288209,98.708,98.651,4.49999999]
[1770149647478,15.85152154,98.707,98.651,4.49999999]
[1770149648467,26.97440363,98.707,98.611,4.49999999]
[1770149648788,5.36086188,98.705,98.611,4.49999999]
[1770149648989,5.36086188,98.703,98.611,4.49999999]
[1770149649181,5.36086188,98.701,98.611,4.49999999]
[1770149649392,5.36086188,98.699,98.611,4.49999999]
[1770149649896,5.36086188,98.697,98.611,4.49999999]
[1770149650095,5.36086188,98.695,98.611,4.49999999]
[1770149650391,5.36086188,98.693,98.611,4.49999999]
[1770149650704,5.36086188,98.691,98.621,4.49999999]
[1770149651192,5.36086188,98.689,98.621,4.49999999]
[1770149651671,5.36086188,98.687,98.621,4.49999999]
[1770149652091,5.36086188,98.685,98.621,4.49999999]
[1770149653488,28.18,98.684,98.621,4.49999999]
[1770149654293,5.36086188,98.685,98.621,4.49999999]
[1770149655196,102.3,98.732,98.6,135.33758197]
[1770149655197,5.36086188,98.731,98.6,124.64912952]
[1770149655408,153.07113526,98.732,98.6,124.56611024]
[1770149655409,5.36086188,98.683,98.6,124.56611024]
[1770149655709,102.3,98.732,98.6,124.56611024]
[1770149655710,5.36086188,98.681,98.6,124.56611024]
[1770149655996,5.36086188,98.679,98.6,124.56611024]
[1770149656383,5.36086188,98.677,98.6,124.56611024]
[1770149656693,5.36086188,98.675,98.6,124.56611024]
[1770149657084,28.18,98.682,98.6,124.56611024]
[1770149657085,5.36086188,98.673,98.6,124.56611024]
[1770149657287,5.36086188,98.671,98.6,124.56611024]
[1770149657594,5.36086188,98.669,98.6,124.56611024]
[1770149657900,5.36086188,98.667,98.6,124.56611024]
[1770149658201,5.36086188,98.665,98.6,124.56611024]
[1770149658398,5.36086188,98.663,98.6,124.56611024]
[1770149658574,5.36086188,98.661,98.6,124.56611024]
[1770149658780,5.36086188,98.659,98.6,124.56611024]
[1770149658978,5.36086188,98.657,98.6,124.56611024]
[1770149659302,5.36086188,98.655,98.6,124.56611024]
[1770149659492,5.36086188,98.653,98.6,124.56611024]
[1770149659693,5.36086188,98.651,98.6,124.56611024]
[1770149659905,5.36086188,98.649,98.6,124.56611024]
[1770149660097,5.36086188,98.647,98.6,124.56611024]
[1770149660281,5.36086188,98.645,98.6,124.56611024]
[1770149660478,5.36086188,98.643,98.6,124.56611024]
[1770149660682,5.36086188,98.641,98.6,107.23611024]
[1770149660983,5.36086188,98.639,98.6,107.23611024]
[1770149661190,5.36086188,98.637,98.6,107.23611024]
[1770149661380,5.36086188,98.635,98.6,107.23611024]
[1770149661696,5.36086188,98.633,98.6,107.23611024]
[1770149661897,5.36086188,98.631,98.6,107.23611024]
[1770149662076,5.36086188,98.629,98.6,107.23611024]
[1770149662281,11.68865161,98.629,98.6,107.23611024]
[1770149662476,5.36086188,98.627,98.6,107.23611024]
[1770149662780,11.68168359,98.627,98.6,107.23611024]
[1770149662981,6.29388563,98.626,98.6,107.23611024]
[1770149663177,6.29388563,98.626,98.6,106.23611024]
[1770149665798,6.29388563,98.626,98.601,4.49999999]
[1770149666784,6.29388563,98.626,98.6,106.23611024]
[1770149668699,6.29388563,98.626,98.601,4.49999999]
[1770149670307,6.29388563,98.626,98.6,106.23611024]
[1770149670605,6.29388563,98.626,98.6,88.90611024]
[1770149670606,5.36086188,98.625,98.6,88.90611024]
[1770149670789,5.36086188,98.623,98.6,88.90611024]
[1770149670999,11.12288209,98.622,98.6,88.90611024]
[1770149671384,5.36086188,98.62,98.6,88.90611024]
[1770149672097,39.32288209,98.622,98.6,93.40611023]
[1770149672695,28.2,98.622,98.601,4.49999999]
[1770149673097,5.36086188,98.621,98.6,88.90611024]
[1770149673907,28.2,98.622,98.6,9.19506894]
[1770149673908,5.36086188,98.619,98.6,9.19506894]
[1770149674089,5.36086188,98.621,98.58,0.1]
[1770149674290,5.36086188,98.617,98.58,0.1]
[1770149674486,11.12266853,98.616,98.58,4.59999999]
[1770149678497,5.36086188,98.615,98.58,0.1]
[1770149678702,5.36086188,98.613,98.58,0.1]
[1770149679013,5.36086188,98.611,98.58,0.1]
[1770149679515,16.48374397,98.61,98.58,0.1]
[1770149679720,5.36086188,98.608,98.58,0.1]
[1770149680601,5.36086188,98.608,98.58,4.59999999]
[1770149681001,28.2,98.609,98.58,4.59999999]
[1770149682297,28.2,98.608,98.58,4.59999999]
[1770149688230,11.12288209,98.61,98.58,4.59999999]
[1770149688409,28.2,98.609,98.58,4.59999999]
[1770149688604,28.2,98.609,98.58,0.1]
[1770149688806,5.36086188,98.608,98.561,4.49999999]
[1770149689028,16.48374397,98.608,98.561,4.49999999]
[1770149689225,6.88779895,98.607,98.561,4.49999999]
[1770149689423,16.48374397,98.606,98.549,4.49999999]
[1770149689840,5.36086188,98.604,98.549,4.49999999]
[1770149690133,5.36086188,98.602,98.549,4.49999999]
[1770149690337,5.36086188,98.6,98.549,4.49999999]
[1770149690539,5.36086188,98.598,98.549,4.49999999]
[1770149690720,11.12288209,98.597,98.549,4.49999999]
[1770149691030,18.01068104,98.597,98.549,4.49999999]
[1770149691451,33.56086188,98.596,98.549,4.49999999]
[1770149691812,28.2,98.596,98.549,4.49999999]
[1770149692733,6.88779895,98.595,98.549,4.49999999]
[1770149693041,28.2,98.594,98.549,4.49999999]
[1770149693412,35.08779895,98.595,98.549,4.49999999]
[1770149694329,4.1717919,98.624,98.551,4.10707947]
[1770149694510,6.29388563,98.626,98.571,4.10707947]
[1770149694712,6.29388563,98.626,98.581,4.10707947]
[1770149695535,1.79388563,98.626,98.571,4.10707947]
[1770149696026,11.12288209,98.651,98.571,4.10707947]
[1770149696234,6.3406973,98.66,98.601,4.10707947]
[1770149697016,1.52238189,98.66,98.61,10.29098363]
[1770149698039,1.52238189,98.66,98.6,10.29098363]
[1770149698828,1.52238189,98.66,98.56,10.29098363]
[1770149698829,1.52238189,98.66,98.61,10.29098363]
[1770149699030,1.52238189,98.66,98.63,10.29098363]
[1770149700234,1.52238189,98.66,98.61,10.29098363]
[1770149700834,6.02238189,98.66,98.6,10.29098363]
[1770149701026,4.5,98.659,98.59,10.29098363]
[1770149701232,4.5,98.659,98.541,5.36086188]
[1770149701543,1.52238189,98.66,98.6,10.29098363]
[1770149701745,1.52238189,98.66,98.61,10.29098363]
[1770149703630,4.5,98.657,98.54,0.2]
[1770149703827,4.5,98.655,98.56,10.29098363]
[1770149704033,4.5,98.653,98.56,10.29098363]
[1770149704230,4.5,98.651,98.56,10.29098363]
[1770149704428,4.5,98.647,98.55,10.29098363]
[1770149704742,4.5,98.636,98.54,10.49098363]
[1770149704939,4.5,98.634,98.55,10.29098363]
[1770149705245,4.5,98.633,98.55,10.29098363]
[1770149705434,4.5,98.632,98.55,10.29098363]
[1770149705642,10.93963569,98.632,98.57,10.29098363]
[1770149705942,10.93963569,98.632,98.58,10.29098363]
[1770149708345,4.5,98.631,98.56,10.29098363]
[1770149708933,4.5,98.631,98.55,10.29098363]
[1770149709253,4.5,98.631,98.57,10.29098363]
[1770149709549,6.43963569,98.632,98.58,10.29098363]
[1770149712463,6.43963569,98.632,98.59,10.29098363]
[1770149712639,6.43963569,98.632,98.58,10.29098363]
[1770149713967,6.43963569,98.632,98.61,10.29098363]
[1770149715363,6.43963569,98.632,98.59,10.29098363]
[1770149715945,6.43963569,98.632,98.58,10.29098363]
[1770149716849,6.43963569,98.632,98.59,10.29098363]
[1770149717068,6.43963569,98.632,98.6,10.29098363]
[1770149717367,6.43963569,98.632,98.61,9.29098363]
[1770149717961,6.43963569,98.632,98.59,10.29098363]
[1770149718471,6.43963569,98.632,98.58,10.29098363]
[1770149718671,6.43963569,98.632,98.59,10.29098363]
[1770149719565,6.43963569,98.632,98.6,10.29098363]
[1770149720158,6.43963569,98.632,98.59,10.29098363]
[1770149720377,6.43963569,98.632,98.6,10.29098363]
[1770149721259,6.43963569,98.632,98.59,10.29098363]
[1770149721465,6.43963569,98.632,98.6,10.29098363]
[1770149721880,6.43963569,98.632,98.62,10.29098363]
[1770149722373,6.43963569,98.632,98.61,10.29098363]
[1770149722557,6.43963569,98.632,98.562,103.2]
[1770149722760,6.43963569,98.632,98.6,10.29098363]
[1770149722980,6.43963569,98.632,98.59,10.29098363]
[1770149723278,10.93963569,98.632,98.58,10.29098363]
[1770149723681,6.43963569,98.632,98.59,10.29098363]
[1770149723982,6.43963569,98.632,98.6,10.29098363]
[1770149724480,6.43963569,98.632,98.61,10.29098363]
[1770149726375,6.43963569,98.632,98.61,10.27960228]
[1770149726775,6.43963569,98.632,98.59,10.27960228]
[1770149726776,4.5,98.631,98.59,10.27960228]
[1770149727571,4.5,98.64,98.6,10.27960228]
[1770149727775,6.31952328,98.672,98.63,10.27960228]
[1770149727983,6.31952328,98.672,98.56,10.27960228]
[1770149727984,4.5,98.713,98.66,10.27960228]
[1770149728166,4.5,98.713,98.67,10.27960228]
[1770149728575,5.70648427,98.712,98.62,10.27960228]
[1770149728881,4.5,98.711,98.62,10.27960228]
[1770149729079,4.5,98.705,98.61,10.27960228]
[1770149729281,4.5,98.703,98.62,10.27960228]
[1770149729485,4.5,98.703,98.63,10.27960228]
[1770149730262,4.5,98.703,98.58,29.60092077]
[1770149730484,4.5,98.703,98.63,10.27960228]
[1770149732502,4.5,98.703,98.62,3.596616]
[1770149732802,4.5,98.703,98.63,3.596616]
[1770149733580,4.5,98.703,98.62,3.596616]
[1770149733879,4.5,98.703,98.63,3.596616]
[1770149735497,4.5,98.703,98.6,3.596616]
[1770149735795,4.5,98.692,98.6,3.596616]
[1770149736103,4.5,98.69,98.59,3.596616]
[1770149736401,4.5,98.688,98.6,3.596616]
[1770149736594,4.5,98.688,98.61,3.596616]
[1770149736789,4.5,98.688,98.63,3.596616]
[1770149737103,4.5,98.688,98.62,3.596616]
[1770149737704,4.5,98.688,98.6,3.596616]
[1770149737995,4.5,98.682,98.59,3.596616]
[1770149738203,4.5,98.682,98.6,3.596616]
[1770149738801,4.5,98.682,98.59,3.596616]
[1770149739585,4.5,98.68,98.59,3.596616]
[1770149740501,5.36086188,98.683,98.554,29.60092077]
[1770149740502,4.5,98.674,98.56,3.596616]
[1770149740710,4.5,98.664,98.56,3.596616]
[1770149740906,4.5,98.652,98.56,3.596616]
[1770149741406,4.5,98.652,98.554,29.60092077]
[1770149741605,26.47695148,98.663,98.504,23.68047677]
[1770149741606,4.5,98.648,98.504,23.68047677]
[1770149741809,4.5,98.632,98.52,3.596616]
[1770149742014,4.5,98.612,98.504,23.68047677]
[1770149742187,5.36086188,98.595,98.504,23.68047677]
[1770149742387,4.5,98.582,98.504,23.68047677]
[1770149742788,4.5,98.562,98.5,0.1]
[1770149742982,4.5,98.56,98.5,0.1]
[1770149744103,4.5,98.552,98.5,0.1]
[1770149744693,5.36086188,98.553,98.47,10.40379326]
[1770149744694,5.36086188,98.543,98.47,0.1]
[1770149744898,4.5,98.532,98.47,0.1]
[1770149747400,4.5,98.532,98.47,10.40379326]
[1770149747706,4.5,98.532,98.47,0.1]
[1770149748504,4.5,98.532,98.47,10.40379326]
[1770149748817,4.5,98.532,98.47,0.1]
[1770149748996,4.5,98.53,98.45,0.1]
[1770149749200,4.5,98.522,98.45,0.1]